[Event "Late-Titled-Tuesday-Blitz-August-29-2023"]
[Site "Chess.com"]
[Date "2023.08.29"]
[Round "1"]
[White "XDPS"]
[Black "scandalgod"]
[Result "1-0"]
[WhiteElo "2872"]
[BlackElo "2465"]
[TimeControl "180+1"]
[EndTime "14:07:16 PDT"]
[Termination "XDPS won on time"]

1. d4 {[%clk 0:03:00.9]} 1... d5 {[%clk 0:02:55.2]} 2. Nf3 {[%clk 0:02:59.8]}
2... Nf6 {[%clk 0:02:54.8]} 3. Bf4 {[%clk 0:02:59.9]} 3... e6 {[%clk 0:02:53.7]}
4. e3 {[%clk 0:02:57.8]} 4... Bd6 {[%clk 0:02:52.6]} 5. Nbd2 {[%clk 0:02:58.2]}
5... O-O {[%clk 0:02:52.1]} 6. c3 {[%clk 0:02:54.9]} 6... c5 {[%clk 0:02:52]} 7.
Bd3 {[%clk 0:02:54.6]} 7... Qc7 {[%clk 0:02:52]} 8. Bxd6 {[%clk 0:02:55.1]} 8...
Qxd6 {[%clk 0:02:51.7]} 9. Ne5 {[%clk 0:02:55.9]} 9... b6 {[%clk 0:02:48.3]} 10.
f4 {[%clk 0:02:55.2]} 10... Bb7 {[%clk 0:02:48.4]} 11. Qf3 {[%clk 0:02:55]}
11... Nbd7 {[%clk 0:02:47.1]} 12. g4 {[%clk 0:02:55.6]} 12... Qe7 {[%clk
0:02:11.7]} 13. g5 {[%clk 0:02:49.9]} 13... Nxe5 {[%clk 0:01:59.6]} 14. fxe5
{[%clk 0:02:48.5]} 14... Ne4 {[%clk 0:01:55.5]} 15. h4 {[%clk 0:02:34.6]} 15...
Kh8 {[%clk 0:01:44.7]} 16. Nxe4 {[%clk 0:02:32.3]} 16... dxe4 {[%clk 0:01:42.7]}
17. Bxe4 {[%clk 0:02:33.2]} 17... Bxe4 {[%clk 0:01:39.3]} 18. Qxe4 {[%clk
0:02:34.1]} 18... a5 {[%clk 0:01:37.7]} 19. O-O-O {[%clk 0:02:27.3]} 19... a4
{[%clk 0:01:36.7]} 20. a3 {[%clk 0:02:26.2]} 20... b5 {[%clk 0:01:31.2]} 21.
dxc5 {[%clk 0:02:25.1]} 21... Qxc5 {[%clk 0:01:32.1]} 22. Rd4 {[%clk 0:02:23.9]}
22... Rac8 {[%clk 0:01:28.6]} 23. h5 {[%clk 0:02:21.9]} 23... Qe7 {[%clk
0:01:26.9]} 24. Rg1 {[%clk 0:02:15.4]} 24... Rc5 {[%clk 0:01:16]} 25. Kb1 {[%clk
0:02:07.3]} 25... Qc7 {[%clk 0:01:08.2]} 26. Rd6 {[%clk 0:02:07.3]} 26... Rc8
{[%clk 0:00:59.9]} 27. g6 {[%clk 0:02:04.7]} 27... Qe7 {[%clk 0:00:38.8]} 28.
Rgd1 {[%clk 0:01:40.7]} 28... fxg6 {[%clk 0:00:21.6]} 29. hxg6 {[%clk
0:01:41.6]} 29... Qg5 {[%clk 0:00:20.9]} 30. Rxe6 {[%clk 0:01:36.6]} 30... hxg6
{[%clk 0:00:17.5]} 31. Rxg6 {[%clk 0:01:04.4]} 31... Qxe5 {[%clk 0:00:17.3]} 32.
Qh4+ {[%clk 0:00:56.5]} 32... Kg8 {[%clk 0:00:17.3]} 33. Rdg1 {[%clk 0:00:57.1]}
33... R5c7 {[%clk 0:00:11.1]} 34. Qd4 {[%clk 0:00:56.4]} 34... Re8 {[%clk
0:00:07.9]} 35. R1g3 {[%clk 0:00:49.3]} 35... Kh7 {[%clk 0:00:05.6]} 36. R6g5
{[%clk 0:00:42.2]} 36... Qxd4 {[%clk 0:00:05.1]} 37. exd4 {[%clk 0:00:43.1]}
37... Re2 {[%clk 0:00:04.4]} 38. Rxb5 {[%clk 0:00:42.6]} 38... Rf7 {[%clk
0:00:02.8]} 39. Rg1 {[%clk 0:00:30.3]} 39... Rff2 {[%clk 0:00:01.3]} 40. Rb7
{[%clk 0:00:27.7]} 40... Kh6 {[%clk 0:00:01.6]} 41. Rh1+ {[%clk 0:00:24.2]}
41... Kg6 {[%clk 0:00:01]} 42. d5 {[%clk 0:00:23.9]} 1-0

[Event "Late-Titled-Tuesday-Blitz-August-29-2023"]
[Site "Chess.com"]
[Date "2023.08.29"]
[Round "1"]
[White "DenizSeyhanoglu1"]
[Black "Rutricks"]
[Result "0-1"]
[WhiteElo "2312"]
[BlackElo "2615"]
[TimeControl "180+1"]
[EndTime "14:07:17 PDT"]
[Termination "Rutricks won by resignation"]

1. e4 {[%clk 0:02:59.8]} 1... g6 {[%clk 0:03:00.7]} 2. d4 {[%clk 0:02:59.3]}
2... Bg7 {[%clk 0:03:01.4]} 3. Nc3 {[%clk 0:02:59.8]} 3... c6 {[%clk 0:03:02]}
4. g3 {[%clk 0:02:52.1]} 4... d5 {[%clk 0:03:01.8]} 5. e5 {[%clk 0:02:52.2]}
5... f6 {[%clk 0:03:01.9]} 6. f4 {[%clk 0:02:50]} 6... Nh6 {[%clk 0:03:02.3]} 7.
Bg2 {[%clk 0:02:49.5]} 7... Bg4 {[%clk 0:03:01.6]} 8. Nge2 {[%clk 0:02:48.9]}
8... fxe5 {[%clk 0:03:01]} 9. dxe5 {[%clk 0:02:45.5]} 9... O-O {[%clk
0:03:01.6]} 10. h3 {[%clk 0:02:44.8]} 10... Bxe2 {[%clk 0:03:01.8]} 11. Nxe2
{[%clk 0:02:45.2]} 11... Nf5 {[%clk 0:03:00.6]} 12. O-O {[%clk 0:02:43.7]} 12...
Qb6+ {[%clk 0:03:00.9]} 13. Kh2 {[%clk 0:02:43]} 13... Nd7 {[%clk 0:02:56.6]}
14. b3 {[%clk 0:02:42.9]} 14... e6 {[%clk 0:02:56.1]} 15. a4 {[%clk 0:02:42.5]}
15... a5 {[%clk 0:02:56.2]} 16. Ba3 {[%clk 0:02:41]} 16... Ne3 {[%clk
0:02:54.9]} 17. Qd4 {[%clk 0:02:33.3]} 17... Nxf1+ {[%clk 0:02:54.8]} 18. Rxf1
{[%clk 0:02:31.6]} 18... Qxd4 {[%clk 0:02:51.7]} 19. Nxd4 {[%clk 0:02:32.5]}
19... Rfe8 {[%clk 0:02:52.2]} 20. g4 {[%clk 0:02:29.1]} 20... Bf8 {[%clk
0:02:52.6]} 21. Bxf8 {[%clk 0:02:22.1]} 21... Nxf8 {[%clk 0:02:52.2]} 22. Kg3
{[%clk 0:02:19.2]} 22... Re7 {[%clk 0:02:49.7]} 23. h4 {[%clk 0:02:18.4]} 23...
Rae8 {[%clk 0:02:49.8]} 24. Bh3 {[%clk 0:02:11.9]} 24... Rf7 {[%clk 0:02:46.5]}
25. g5 {[%clk 0:02:05]} 25... Rfe7 {[%clk 0:02:43.7]} 26. Bg4 {[%clk 0:02:04.7]}
26... Nd7 {[%clk 0:02:42.5]} 27. Rh1 {[%clk 0:02:02.6]} 27... Nc5 {[%clk
0:02:42.3]} 28. Kf3 {[%clk 0:01:59.7]} 28... Rf8 {[%clk 0:02:33.8]} 29. Ke3
{[%clk 0:01:59.8]} 29... Rfe8 {[%clk 0:02:20.9]} 30. c3 {[%clk 0:01:59.6]} 30...
Ne4 {[%clk 0:02:19.2]} 31. c4 {[%clk 0:01:56.8]} 31... Ng3 {[%clk 0:02:19.5]}
32. Rc1 {[%clk 0:01:53.2]} 32... Nf5+ {[%clk 0:02:19.6]} 33. Bxf5 {[%clk
0:01:45.8]} 33... exf5 {[%clk 0:02:05.9]} 34. cxd5 {[%clk 0:01:45.6]} 34... cxd5
{[%clk 0:02:05.6]} 35. Rc5 {[%clk 0:01:46.2]} 35... b6 {[%clk 0:02:02.5]} 36.
Rxd5 {[%clk 0:01:44.3]} 36... Rc8 {[%clk 0:02:02]} 37. Nb5 {[%clk 0:01:40.1]}
37... Rc1 {[%clk 0:01:52.6]} 38. Rd6 {[%clk 0:01:34.5]} 38... Rb1 {[%clk
0:01:47.8]} 39. Nd4 {[%clk 0:01:29.7]} 39... Rb7 {[%clk 0:01:47.5]} 40. h5
{[%clk 0:01:29.8]} 40... gxh5 {[%clk 0:01:45.1]} 41. Nxf5 {[%clk 0:01:23.5]}
41... Rxb3+ {[%clk 0:01:45.4]} 42. Ke4 {[%clk 0:01:23.2]} 42... Rb4+ {[%clk
0:01:44.1]} 43. Kd5 {[%clk 0:01:23.5]} 43... Rxf4 {[%clk 0:01:43.8]} 44. Ke6
{[%clk 0:01:21.4]} 44... Rb8 {[%clk 0:01:25.4]} 45. Ne7+ {[%clk 0:01:20.8]}
45... Kg7 {[%clk 0:01:25.1]} 46. Rd7 {[%clk 0:01:18.8]} 46... Re8 {[%clk
0:01:10.9]} 47. Kd5 {[%clk 0:01:14.6]} 47... Rf7 {[%clk 0:01:08.3]} 48. Nf5+
{[%clk 0:01:12.7]} 48... Kf8 {[%clk 0:01:07.2]} 49. Rxf7+ {[%clk 0:01:10.2]}
49... Kxf7 {[%clk 0:01:07.7]} 50. Nd6+ {[%clk 0:01:10.6]} 50... Kf8 {[%clk
0:01:07.2]} 51. Nxe8 {[%clk 0:01:07.6]} 51... Kxe8 {[%clk 0:01:08.1]} 52. Ke4
{[%clk 0:01:00.5]} 52... Kf7 {[%clk 0:01:02.5]} 53. Kf5 {[%clk 0:00:58.9]} 53...
Ke7 {[%clk 0:01:01.9]} 54. Ke4 {[%clk 0:00:54.1]} 54... Ke6 {[%clk 0:01:01.6]}
55. Kf4 {[%clk 0:00:54.2]} 55... h4 {[%clk 0:00:41.2]} 56. Kg4 {[%clk
0:00:55.1]} 56... Kxe5 {[%clk 0:00:40.8]} 57. Kxh4 {[%clk 0:00:54.6]} 57... Kf4
{[%clk 0:00:33.3]} 58. Kh5 {[%clk 0:00:49.5]} 58... Kg3 {[%clk 0:00:32.3]} 0-1

[Event "Late-Titled-Tuesday-Blitz-August-29-2023"]
[Site "Chess.com"]
[Date "2023.08.29"]
[Round "1"]
[White "gshwbedhkhd"]
[Black "HrvojeZagreb"]
[Result "1-0"]
[WhiteElo "2581"]
[BlackElo "2266"]
[TimeControl "180+1"]
[EndTime "14:07:17 PDT"]
[Termination "gshwbedhkhd won by resignation"]

1. f4 {[%clk 0:02:58.9]} 1... d5 {[%clk 0:02:52.7]} 2. Nf3 {[%clk 0:02:57.7]}
2... g6 {[%clk 0:02:52.9]} 3. g3 {[%clk 0:02:57.3]} 3... Bg7 {[%clk 0:02:53.1]}
4. Bg2 {[%clk 0:02:57]} 4... Bg4 {[%clk 0:02:52.7]} 5. O-O {[%clk 0:02:56.4]}
5... Nh6 {[%clk 0:02:46.7]} 6. d3 {[%clk 0:02:54.8]} 6... d4 {[%clk 0:02:23.4]}
7. c3 {[%clk 0:02:52.7]} 7... c5 {[%clk 0:02:07.5]} 8. Qe1 {[%clk 0:02:51.9]}
8... Nc6 {[%clk 0:02:02.6]} 9. Na3 {[%clk 0:02:46.9]} 9... O-O {[%clk
0:01:48.2]} 10. Bd2 {[%clk 0:02:46]} 10... e5 {[%clk 0:01:09.7]} 11. fxe5 {[%clk
0:02:43.7]} 11... Bxf3 {[%clk 0:00:57.3]} 12. Bxf3 {[%clk 0:02:41.7]} 12... Nxe5
{[%clk 0:00:57.4]} 13. Bg2 {[%clk 0:02:37]} 13... Nf5 {[%clk 0:00:41.6]} 14. Nc2
{[%clk 0:02:31.9]} 14... Qc7 {[%clk 0:00:35.1]} 15. Rc1 {[%clk 0:02:28.6]} 15...
Rae8 {[%clk 0:00:34.1]} 16. Qd1 {[%clk 0:02:27.4]} 16... Ng4 {[%clk 0:00:31.1]}
17. cxd4 {[%clk 0:02:19]} 17... Nxd4 {[%clk 0:00:28.3]} 18. Re1 {[%clk
0:02:00.2]} 18... Qe5 {[%clk 0:00:18.3]} 19. e4 {[%clk 0:01:54.9]} 19... Qh5
{[%clk 0:00:05.9]} 20. h3 {[%clk 0:01:51.4]} 20... Nf6 {[%clk 0:00:06]} 21. Nxd4
{[%clk 0:01:50.4]} 21... cxd4 {[%clk 0:00:03.9]} 22. Bb4 {[%clk 0:01:49.2]}
22... Qxd1 {[%clk 0:00:02.7]} 23. Rexd1 {[%clk 0:01:48.7]} 23... Nh5 {[%clk
0:00:03.6]} 24. Bxf8 {[%clk 0:01:48.3]} 24... Bxf8 {[%clk 0:00:04.1]} 25. g4
{[%clk 0:01:39.3]} 25... Nf4 {[%clk 0:00:04.4]} 26. Bf1 {[%clk 0:01:39.4]} 26...
Bd6 {[%clk 0:00:03.6]} 27. Rc4 {[%clk 0:01:38.8]} 27... Be5 {[%clk 0:00:03.2]}
28. Rdc1 {[%clk 0:01:36.9]} 28... a6 {[%clk 0:00:03.1]} 29. Rc8 {[%clk
0:01:35.7]} 29... Kf8 {[%clk 0:00:03.5]} 30. Rxe8+ {[%clk 0:01:34.9]} 30... Kxe8
{[%clk 0:00:04.4]} 31. Rc8+ {[%clk 0:01:33.2]} 31... Ke7 {[%clk 0:00:04.7]} 32.
Kf2 {[%clk 0:01:31.9]} 32... h5 {[%clk 0:00:04.7]} 33. gxh5 {[%clk 0:01:31.1]}
33... Nxh5 {[%clk 0:00:05.4]} 34. Ra8 {[%clk 0:01:24.8]} 34... Nf6 {[%clk
0:00:05.6]} 35. Ra7 {[%clk 0:01:23.9]} 35... Nd7 {[%clk 0:00:05.4]} 36. Rxb7
{[%clk 0:01:22.6]} 36... Kd6 {[%clk 0:00:06.3]} 37. Ra7 {[%clk 0:01:20.6]} 37...
Nc5 {[%clk 0:00:05.9]} 38. Rxf7 {[%clk 0:01:19.7]} 38... g5 {[%clk 0:00:06.2]}
39. Rf5 {[%clk 0:01:17.7]} 39... Bf4 {[%clk 0:00:06.2]} 40. h4 {[%clk
0:01:17.1]} 40... Be3+ {[%clk 0:00:06]} 41. Kg3 {[%clk 0:01:14.7]} 41... gxh4+
{[%clk 0:00:06.9]} 42. Kxh4 {[%clk 0:01:14.8]} 42... Na4 {[%clk 0:00:06.8]} 43.
b3 {[%clk 0:01:13.6]} 43... Nc3 {[%clk 0:00:06.2]} 44. Ra5 {[%clk 0:01:13]}
44... Nd1 {[%clk 0:00:04.1]} 45. Rxa6+ {[%clk 0:01:11.5]} 45... Kc5 {[%clk
0:00:04.7]} 46. Kg4 {[%clk 0:01:09.5]} 46... Nf2+ {[%clk 0:00:04.3]} 47. Kf5
{[%clk 0:01:07.5]} 47... Kb5 {[%clk 0:00:05.2]} 48. Ra8 {[%clk 0:01:07.2]} 48...
Nh1 {[%clk 0:00:04.4]} 49. Bh3 {[%clk 0:01:05.9]} 49... Ng3+ {[%clk 0:00:04.4]}
50. Ke6 {[%clk 0:01:04.2]} 50... Ne2 {[%clk 0:00:04.6]} 51. Bf5 {[%clk
0:01:02.3]} 51... Nc1 {[%clk 0:00:04.6]} 52. e5 {[%clk 0:01:01.8]} 52... Kb6
{[%clk 0:00:02.4]} 53. Kd5 {[%clk 0:00:59.2]} 53... Kc7 {[%clk 0:00:02.5]} 54.
e6 {[%clk 0:00:59]} 54... Kb7 {[%clk 0:00:02.2]} 55. e7 {[%clk 0:00:56.8]} 1-0

[Event "Late-Titled-Tuesday-Blitz-August-29-2023"]
[Site "Chess.com"]
[Date "2023.08.29"]
[Round "1"]
[White "nassimzrikem"]
[Black "IamSchrodingersCat"]
[Result "0-1"]
[WhiteElo "2128"]
[BlackElo "2543"]
[TimeControl "180+1"]
[EndTime "14:07:21 PDT"]
[Termination "IamSchrodingersCat won by resignation"]

1. d4 {[%clk 0:03:00]} 1... Nf6 {[%clk 0:02:59.7]} 2. Nf3 {[%clk 0:03:00.7]}
2... g6 {[%clk 0:02:59.7]} 3. Bg5 {[%clk 0:03:00.6]} 3... Bg7 {[%clk 0:03:00.1]}
4. Nbd2 {[%clk 0:03:01.1]} 4... d5 {[%clk 0:03:00.1]} 5. c3 {[%clk 0:03:01.1]}
5... O-O {[%clk 0:02:59.4]} 6. b4 {[%clk 0:03:00.1]} 6... a5 {[%clk 0:02:57.7]}
7. b5 {[%clk 0:03:00]} 7... b6 {[%clk 0:02:54.7]} 8. e3 {[%clk 0:02:59.5]} 8...
Bb7 {[%clk 0:02:54.3]} 9. Bd3 {[%clk 0:02:57.9]} 9... Nbd7 {[%clk 0:02:54.3]}
10. O-O {[%clk 0:02:57.4]} 10... Re8 {[%clk 0:02:54.6]} 11. Bxf6 {[%clk
0:02:51]} 11... Bxf6 {[%clk 0:02:53.2]} 12. c4 {[%clk 0:02:49.1]} 12... e5
{[%clk 0:02:50.9]} 13. cxd5 {[%clk 0:02:39.3]} 13... Bxd5 {[%clk 0:02:35.3]} 14.
e4 {[%clk 0:02:38]} 14... Bb7 {[%clk 0:02:35.4]} 15. d5 {[%clk 0:02:26.4]} 15...
Be7 {[%clk 0:02:31.8]} 16. a4 {[%clk 0:02:24.8]} 16... Nc5 {[%clk 0:02:27.5]}
17. Nb3 {[%clk 0:02:25.6]} 17... Nxb3 {[%clk 0:02:18.6]} 18. Qxb3 {[%clk
0:02:25.3]} 18... Bc5 {[%clk 0:02:19.5]} 19. Rac1 {[%clk 0:02:19.6]} 19... Qe7
{[%clk 0:02:18.7]} 20. Bc4 {[%clk 0:02:11.6]} 20... Kg7 {[%clk 0:02:18.8]} 21.
Ne1 {[%clk 0:02:12.5]} 21... Rf8 {[%clk 0:02:16.2]} 22. Nd3 {[%clk 0:02:12.9]}
22... Bd4 {[%clk 0:02:13.9]} 23. Qc2 {[%clk 0:01:54]} 23... h5 {[%clk
0:02:01.4]} 24. Bb3 {[%clk 0:01:50.7]} 24... Rac8 {[%clk 0:02:01.1]} 25. Kh1
{[%clk 0:01:47.9]} 25... Qh4 {[%clk 0:01:54.7]} 26. f4 {[%clk 0:01:46.8]} 26...
exf4 {[%clk 0:01:51.4]} 27. Rxf4 {[%clk 0:01:41.2]} 27... Qg5 {[%clk 0:01:50.3]}
28. Rcf1 {[%clk 0:01:37]} 28... f6 {[%clk 0:01:38.8]} 29. Qc4 {[%clk 0:01:10.4]}
29... Be5 {[%clk 0:01:35.5]} 30. Nxe5 {[%clk 0:01:09.8]} 30... Qxe5 {[%clk
0:01:36.1]} 31. Qd3 {[%clk 0:01:03.8]} 31... Rcd8 {[%clk 0:01:31.7]} 32. Qg3
{[%clk 0:01:03.7]} 32... g5 {[%clk 0:01:20.6]} 33. R4f3 {[%clk 0:00:43]} 33...
Qxg3 {[%clk 0:01:18.7]} 34. Rxg3 {[%clk 0:00:43.9]} 34... Rfe8 {[%clk
0:01:15.4]} 35. h4 {[%clk 0:00:42.2]} 35... g4 {[%clk 0:01:09.3]} 36. Re3 {[%clk
0:00:41.7]} 36... Re5 {[%clk 0:01:08.9]} 37. Rf5 {[%clk 0:00:40.2]} 37... Rxf5
{[%clk 0:01:03.4]} 38. exf5 {[%clk 0:00:41.1]} 38... Bxd5 {[%clk 0:00:53]} 39.
Bxd5 {[%clk 0:00:29.2]} 39... Rxd5 {[%clk 0:00:53.9]} 40. Re7+ {[%clk
0:00:28.5]} 40... Kg8 {[%clk 0:00:47.9]} 41. Rxc7 {[%clk 0:00:29.4]} 41... g3
{[%clk 0:00:45]} 42. Rc1 {[%clk 0:00:14]} 42... Rxf5 {[%clk 0:00:45]} 43. Kg1
{[%clk 0:00:14.4]} 43... Rf4 {[%clk 0:00:44.8]} 44. Rf1 {[%clk 0:00:14]} 44...
Rxa4 {[%clk 0:00:42]} 45. Rxf6 {[%clk 0:00:10.7]} 45... Ra1+ {[%clk 0:00:41.8]}
46. Rf1 {[%clk 0:00:11.6]} 46... Rxf1+ {[%clk 0:00:42.6]} 47. Kxf1 {[%clk
0:00:11.9]} 47... Kf7 {[%clk 0:00:43.2]} 48. Ke2 {[%clk 0:00:12.5]} 48... Ke6
{[%clk 0:00:43.4]} 49. Kf3 {[%clk 0:00:13.4]} 49... a4 {[%clk 0:00:42.9]} 50.
Ke3 {[%clk 0:00:14.3]} 50... a3 {[%clk 0:00:43.8]} 51. Kd3 {[%clk 0:00:14.8]}
51... a2 {[%clk 0:00:44.5]} 0-1

[Event "Late-Titled-Tuesday-Blitz-August-29-2023"]
[Site "Chess.com"]
[Date "2023.08.29"]
[Round "1"]
[White "Malev212"]
[Black "diamonds13"]
[Result "1-0"]
[WhiteElo "2668"]
[BlackElo "2364"]
[TimeControl "180+1"]
[EndTime "14:07:22 PDT"]
[Termination "Malev212 won on time"]

1. e4 {[%clk 0:02:56.2]} 1... c5 {[%clk 0:02:58.2]} 2. Nf3 {[%clk 0:02:55.5]}
2... Nc6 {[%clk 0:02:55.6]} 3. Bb5 {[%clk 0:02:53.5]} 3... e6 {[%clk 0:02:54]}
4. Bxc6 {[%clk 0:02:52.1]} 4... bxc6 {[%clk 0:02:53.2]} 5. b3 {[%clk 0:02:52.1]}
5... d5 {[%clk 0:02:52.9]} 6. e5 {[%clk 0:02:45.8]} 6... Ne7 {[%clk 0:02:51.7]}
7. d3 {[%clk 0:02:42.3]} 7... Qc7 {[%clk 0:02:44.1]} 8. Bb2 {[%clk 0:02:33.4]}
8... Ng6 {[%clk 0:02:44.2]} 9. Nbd2 {[%clk 0:02:28.9]} 9... Be7 {[%clk
0:02:42.2]} 10. h4 {[%clk 0:02:26.4]} 10... h5 {[%clk 0:02:41.2]} 11. Qe2 {[%clk
0:02:17.1]} 11... Nf4 {[%clk 0:02:37.8]} 12. Qf1 {[%clk 0:02:16.3]} 12... d4
{[%clk 0:02:37.3]} 13. Nc4 {[%clk 0:02:09.3]} 13... Ba6 {[%clk 0:02:34.7]} 14.
Bc1 {[%clk 0:02:01.9]} 14... Nd5 {[%clk 0:02:32.8]} 15. Bd2 {[%clk 0:02:00.5]}
15... f6 {[%clk 0:02:23.4]} 16. Qe2 {[%clk 0:01:59.4]} 16... f5 {[%clk
0:02:19.1]} 17. Nd6+ {[%clk 0:01:41.3]} 17... Bxd6 {[%clk 0:02:17.5]} 18. exd6
{[%clk 0:01:40.9]} 18... Qxd6 {[%clk 0:02:17.6]} 19. Ne5 {[%clk 0:01:38.2]}
19... Nf6 {[%clk 0:02:09.2]} 20. f3 {[%clk 0:01:35]} 20... Nd5 {[%clk
0:02:05.5]} 21. O-O {[%clk 0:01:19.9]} 21... f4 {[%clk 0:02:05.8]} 22. Qe4
{[%clk 0:01:18.2]} 22... O-O-O {[%clk 0:01:34.1]} 23. Nf7 {[%clk 0:01:12.5]}
23... Qc7 {[%clk 0:01:11.4]} 24. Qxe6+ {[%clk 0:01:10.9]} 24... Kb8 {[%clk
0:01:11.3]} 25. Nxh8 {[%clk 0:00:59.4]} 25... Rxh8 {[%clk 0:01:10]} 26. g3
{[%clk 0:00:58.8]} 26... Bc8 {[%clk 0:01:04.8]} 27. Qe4 {[%clk 0:00:56.3]} 27...
fxg3 {[%clk 0:00:59.6]} 28. Rfe1 {[%clk 0:00:47.8]} 28... Qd7 {[%clk 0:00:53.7]}
29. Qe5+ {[%clk 0:00:46.4]} 29... Kb7 {[%clk 0:00:46.7]} 30. Qxg3 {[%clk
0:00:45.4]} 30... Rf8 {[%clk 0:00:44.3]} 31. Re4 {[%clk 0:00:43.4]} 31... Rf6
{[%clk 0:00:40.1]} 32. Rae1 {[%clk 0:00:41.5]} 32... Qf7 {[%clk 0:00:38.4]} 33.
Bg5 {[%clk 0:00:35.7]} 33... Rxf3 {[%clk 0:00:35.1]} 34. Qd6 {[%clk 0:00:35.1]}
34... Bd7 {[%clk 0:00:20.6]} 35. Re7 {[%clk 0:00:23.7]} 35... Nxe7 {[%clk
0:00:19.4]} 36. Qxd7+ {[%clk 0:00:23.2]} 36... Ka6 {[%clk 0:00:17.9]} 37. Qxe7
{[%clk 0:00:20.1]} 37... Rf1+ {[%clk 0:00:16.4]} 38. Rxf1 {[%clk 0:00:18.4]}
38... Qxe7 {[%clk 0:00:13]} 39. Bxe7 {[%clk 0:00:17.4]} 1-0

[Event "Late-Titled-Tuesday-Blitz-August-29-2023"]
[Site "Chess.com"]
[Date "2023.08.29"]
[Round "1"]
[White "viktorskliarov"]
[Black "RIPOL"]
[Result "1-0"]
[WhiteElo "2711"]
[BlackElo "2416"]
[TimeControl "180+1"]
[EndTime "14:07:23 PDT"]
[Termination "viktorskliarov won on time"]

1. e4 {[%clk 0:02:59.3]} 1... Nf6 {[%clk 0:02:58.8]} 2. Nc3 {[%clk 0:02:57.9]}
2... d5 {[%clk 0:02:57.8]} 3. e5 {[%clk 0:02:57.2]} 3... Nfd7 {[%clk 0:02:57.5]}
4. Nxd5 {[%clk 0:02:57.5]} 4... Nxe5 {[%clk 0:02:54.4]} 5. Ne3 {[%clk
0:02:58.4]} 5... c5 {[%clk 0:02:52.9]} 6. b3 {[%clk 0:02:56.2]} 6... Nec6 {[%clk
0:02:43.8]} 7. Bb2 {[%clk 0:02:54.7]} 7... e5 {[%clk 0:02:42.9]} 8. Bc4 {[%clk
0:02:50.9]} 8... Be7 {[%clk 0:02:36.9]} 9. Nf3 {[%clk 0:02:44.6]} 9... Nd7
{[%clk 0:02:34.1]} 10. Nf5 {[%clk 0:02:40.4]} 10... O-O {[%clk 0:02:24.7]} 11.
Nxe7+ {[%clk 0:02:34.4]} 11... Qxe7 {[%clk 0:02:21.7]} 12. d3 {[%clk 0:02:34.8]}
12... Nd4 {[%clk 0:02:10.6]} 13. O-O {[%clk 0:02:31.1]} 13... Qf6 {[%clk
0:01:38.3]} 14. Nxd4 {[%clk 0:02:27]} 14... exd4 {[%clk 0:01:31]} 15. f4 {[%clk
0:02:06]} 15... Nb6 {[%clk 0:01:24.4]} 16. Qf3 {[%clk 0:02:01.8]} 16... Nxc4
{[%clk 0:01:16.2]} 17. bxc4 {[%clk 0:01:55.5]} 17... Rb8 {[%clk 0:01:15.8]} 18.
Rae1 {[%clk 0:01:46.3]} 18... b5 {[%clk 0:01:07.6]} 19. cxb5 {[%clk 0:01:36.8]}
19... Rxb5 {[%clk 0:01:04]} 20. Bc1 {[%clk 0:01:36.9]} 20... Bb7 {[%clk
0:00:59.5]} 21. Qg3 {[%clk 0:01:36.7]} 21... h5 {[%clk 0:00:30.2]} 22. Re5
{[%clk 0:01:32.9]} 22... h4 {[%clk 0:00:27.8]} 23. Qg4 {[%clk 0:01:27.5]} 23...
Bc8 {[%clk 0:00:23.6]} 24. Qg5 {[%clk 0:01:14.2]} 24... Qxg5 {[%clk 0:00:22.2]}
25. fxg5 {[%clk 0:01:15.1]} 25... Be6 {[%clk 0:00:20.9]} 26. a3 {[%clk
0:01:08.1]} 26... Rb1 {[%clk 0:00:19.5]} 27. Rxc5 {[%clk 0:01:00.9]} 27... Rfb8
{[%clk 0:00:14.3]} 28. h3 {[%clk 0:00:56.2]} 28... Ra1 {[%clk 0:00:14]} 29. Bf4
{[%clk 0:00:55.2]} 29... Rbb1 {[%clk 0:00:12.1]} 30. Rxb1 {[%clk 0:00:53.6]}
30... Rxb1+ {[%clk 0:00:11.6]} 31. Kf2 {[%clk 0:00:54.3]} 31... Ra1 {[%clk
0:00:11.7]} 32. Be5 {[%clk 0:00:47.8]} 32... Rxa3 {[%clk 0:00:09.8]} 33. Bxd4
{[%clk 0:00:47.8]} 33... Ra2 {[%clk 0:00:09.8]} 34. Ke3 {[%clk 0:00:45]} 34...
a5 {[%clk 0:00:09]} 35. Rc7 {[%clk 0:00:44.4]} 35... a4 {[%clk 0:00:07.8]} 36.
g6 {[%clk 0:00:44.8]} 36... fxg6 {[%clk 0:00:06.3]} 37. Rxg7+ {[%clk 0:00:44.2]}
37... Kf8 {[%clk 0:00:06.8]} 38. Rxg6 {[%clk 0:00:43.4]} 38... Bf7 {[%clk
0:00:06.5]} 39. Rc6 {[%clk 0:00:40]} 39... a3 {[%clk 0:00:05.7]} 40. Bf6 {[%clk
0:00:39.4]} 40... Be8 {[%clk 0:00:03.6]} 41. Rc7 {[%clk 0:00:25.9]} 41... Ba4
{[%clk 0:00:03.1]} 42. Bxh4 {[%clk 0:00:23.8]} 42... Rxc2 {[%clk 0:00:01.6]} 43.
Be7+ {[%clk 0:00:23.6]} 1-0